[Event "83rd ESP-ch Women-ch 2018"]
[Site "Linares"]
[Date "2018.08.27"]
[Round "8"]
[White "Ucles Lirola, Moises"]
[Black "Jimenez de la Torre, Jose Antonio"]
[Result "0-1"]
[ECO "D00"]
[WhiteElo "1858"]
[BlackElo "2076"]
[Annotator "NA"]
[PlyCount "126"]
[EventDate "2018.08.09"]
[EventType "tourn"]
[EventCountry "ESP"]
[SourceTitle "playchess.com"]
[Source "ChessBase"]
[SourceQuality "1"]
[TimeControl "40/5400+30:1800+30"]

1. d4 {[%emt 0:01:00]} d5 {[%emt 0:00:00]} 2. Bf4 {[%emt 0:01:23]} c5 {[%emt 0:00:55]} 3. e3 {[%emt 0:02:34]} Nc6 {[%emt 0:00:13]} 4. Nf3 {[%emt 0:01:13]} e6 {[%emt 0:00:06]} 5. c4 {[%emt 0:01:05] D02: Damenbauernspiele} (5. c3 Bd6 6. Bg3 Nf6 7. Nbd2 O-O 8. Bb5 Ne7 9. Bd3 Qb6 10. Rb1 Ng6 11. Bxg6 hxg6 12. Bxd6 Qxd6 13. Ne5 b6 14. Qf3 Ba6 15. h4 Nd7 16. Nxd7 Qxd7 {0-1 (38) Gelfand,B (2734)-Inarkiev,E (2730) Magas 2016}) 5... Nf6 {[%emt 0:11:38]} 6. Nc3 {[%emt 0:01:57]} dxc4 {[%emt 0:06:02]} 7. Bxc4 cxd4 {[%emt 0:06:37]} 8. Nxd4 {[%emt 0:06:05]} Nxd4 {[%emt 0:00:28]} 9. Qxd4 {[%emt 0:01:57]} Qxd4 {[%emt 0:04:02]} 10. exd4 {[%emt 0:00:03]} Bb4 $146 {[%emt 0:00:23]} ({Vorgänger:} 10... Be7 11. d5 exd5 12. Bxd5 Nxd5 13. Nxd5 {1-0 (24) Morgen,H-Doerrschuck,S Bad Kreuznach 1995}) 11. a3 {[%emt 0:08:15]} Ba5 {[%emt 0:00:02]} 12. b4 {[%emt 0:16:00]} Bb6 {[%emt 0:00:07]} 13. Nb5 {[%emt 0:13:43]} a6 {[%emt 0:02:51]} 14. Nc7+ {[%emt 0:05:44]} Bxc7 {[%emt 0:00:07]} 15. Bxc7 {[%emt 0:00:07]} Bd7 {[%emt 0:00:26]} 16. Bd6 {[%emt 0:07:51]} Rc8 {[%emt 0:03:49]} 17. Bd3 {[%emt 0:05:57]} Bc6 {[%emt 0:03:05]} 18. O-O {[%emt 0:00:59]} Kd7 {[%emt 0:07:12]} 19. Be5 {[%emt 0:03:03]} Nd5 {[%emt 0:00:06]} 20. f3 {[%emt 0:04:09]} f6 {[%emt 0:01:37]} 21. Bg3 {[%emt 0:00:01]} Bb5 {[%emt 0:00:43]} 22. Bxb5+ {[%emt 0:07:27]} axb5 {[%emt 0:00:01]} 23. a4 {[%emt 0:00:36]} bxa4 {[%emt 0:00:33]} 24. Rxa4 {[%emt 0:00:09]} Rc4 {[%emt 0:00:06]} 25. Ra7 {[%emt 0:01:24]} Rxb4 {[%emt 0:00:36]} 26. Rc1 {[%emt 0:00:31]} g5 {[%emt 0:03:08]} 27. h3 {[%emt 0:00:55]} h6 {[%emt 0:00:29]} 28. Ra5 {[%emt 0:01:41]} Rc8 {[%emt 0:03:13]} 29. Rxc8 {[%emt 0:04:34]} Kxc8 {[%emt 0:00:02]} 30. Ra8+ {[%emt 0:00:15]} Kd7 {[%emt 0:00:07]} 31. Rh8 {[%emt 0:00:03]} Rxd4 {[%emt 0:00:36]} 32. Rxh6 {[%emt 0:00:08]} b5 {[%emt 0:00:29]} 33. h4 {[%emt 0:00:06]} gxh4 {[%emt 0:01:03]} 34. Bxh4 {[%emt 0:00:14]} b4 {[%emt 0:03:06]} 35. Rh7+ {[%emt 0:03:31]} Kc6 {[%emt 0:00:28]} 36. Rh8 {[%emt 0:00:10]} e5 {[%emt 0:15:20]} 37. Bf2 {[%emt 0:02:15]} Rd1+ {[%emt 0:00:25]} 38. Kh2 {[%emt 0:00:05]} Rf1 {[%emt 0:07:47]} 39. Bg1 {[%emt 0:01:08]} b3 {[%emt 0:03:39]} 40. Rc8+ {[%emt 0:00:33]} Nc7 {[%emt 0:08:23]} 41. Rb8 {[%emt 0:30:01]} Rb1 {[%emt 0:30:56]} 42. Rb6+ {[%emt 0:00:01]} Kd7 {[%emt 0:00:47]} 43. Rxf6 {[%emt 0:00:02]} Nd5 {[%emt 0:03:52]} 44. Rf7+ {[%emt 0:00:57]} Kc6 {[%emt 0:00:02]} 45. Rf8 {[%emt 0:00:45]} Rxg1 {[%emt 0:02:17]} 46. Kxg1 {[%emt 0:01:31]} b2 {[%emt 0:00:18]} 47. Rc8+ {[%emt 0:00:15]} Kb7 {[%emt 0:00:18]} 48. Rg8 {[%emt 0:00:15]} b1=Q+ {[%emt 0:00:22]} 49. Kf2 {[%emt 0:00:01]} Qa2+ {[%emt 0:00:39]} 50. Kg3 {[%emt 0:00:10]} Nf4 {[%emt 0:00:36]} 51. Rg7+ {[%emt 0:00:13]} Kc6 {[%emt 0:00:08]} 52. Kh2 {[%emt 0:00:23]} Qf2 {[%emt 0:00:27]} 53. Kh1 {[%emt 0:01:32]} Kd6 {[%emt 0:00:30]} 54. Rg4 {[%emt 0:00:24]} Ke6 {[%emt 0:00:30]} 55. Kh2 {[%emt 0:00:20]} Kf5 {[%emt 0:00:27]} 56. Rg8 {[%emt 0:00:23]} Ne2 {[%emt 0:01:42]} 57. Rf8+ {[%emt 0:01:00]} Kg5 {[%emt 0:00:28]} 58. Rg8+ {[%emt 0:00:30]} Kf4 {[%emt 0:00:41]} 59. Rg4+ {[%emt 0:00:40]} Kf5 {[%emt 0:01:21]} 60. Kh3 {[%emt 0:00:33]} Ng1+ {[%emt 0:00:12]} 61. Kh2 {[%emt 0:00:06]} Nxf3+ {[%emt 0:00:17]} 62. Kh3 {[%emt 0:00:16]} Ng1+ {[%emt 0:00:33]} 63. Kh2 {[%emt 0:00:27]} Kxg4 $19 {[%emt 0:00:41]} 0-1

[Event "83rd ESP-ch Women-ch 2018"]
[Site "Linares"]
[Date "2018.08.28"]
[Round "9"]
[White "Sanchez Aller, Fernando"]
[Black "Sanchez Jerez, Emilio Miguel"]
[Result "1-0"]
[ECO "B00"]
[WhiteElo "2345"]
[BlackElo "2246"]
[Annotator "NA RC"]
[PlyCount "70"]
[EventDate "2018.08.09"]
[EventType "tourn"]
[EventCountry "ESP"]
[SourceTitle "playchess.com"]
[Source "ChessBase"]
[SourceQuality "1"]
[TimeControl "40/5400+30:1800+30"]

{[%evp 8,67,57,58,35,31,45,32767,32767,0,32767,32767,13,0,0,14,9,-22,5,0,10,11,6,12,6,0,12,14,21,0,-6,4,1,0,33,23,42,32,32767,46,32767,45,129,96,82,32767,32767,145,32767,32767,32767,32767,247,372,32767,32767,32767,32767,32767,32767,32767,859]} 1. e4 {[%emt 0:00:05]} d6 {[%emt 0:00:00]} 2. d4 {[%emt 0:00:07]} e5 {[%emt 0:00:54]} 3. dxe5 {[%emt 0:01:26]} dxe5 {[%emt 0:00:06]} 4. Qxd8+ {[%emt 0:00:11]} Kxd8 {[%emt 0:00:06]} 5. Bc4 {[%emt 0:00:15]} f6 {[%emt 0:00:06] LiveBook: 40 Games} 6. Nc3 {[%emt 0:03:19]} c6 {[%emt 0:00:05]} 7. Be3 {[%emt 0:00:41]} Kc7 {[%emt 0:00:28] B07: Pirc Defence: Miscellaneous Systems} (7... Nd7 8. O-O-O Kc7 9. f4 Bd6 10. f5 Ne7 11. g4 h6 12. h4 Bb4 13. Nge2 b5 14. Bb3 Nc5 15. g5 Nxb3+ 16. axb3 hxg5 17. hxg5 {1-0 (41) Martin Fuentes,A (2391)-Vazquez Igarza,R (2577) Linares 2018}) 8. Nge2 {[%emt 0:01:36]} b5 {[%emt 0:00:28]} 9. Bb3 {[%emt 0:00:08]} Nd7 $146 {[%emt 0:08:37]} ({Predecessor:} 9... a5 10. a4 b4 11. Nb1 Na6 12. Ng3 g6 13. O-O Bc5 14. Bxc5 Nxc5 15. Nd2 Ba6 16. Rfe1 Rd8 17. Rad1 Ne7 {½-½ (17) Osborne,S (1986)-Delaney,K (1984) Bunratty 2008}) 10. Be6 {[%emt 0:02:12]} Ne7 {[%emt 0:19:46]} 11. a4 {[%emt 0:02:23]} b4 {[%emt 0:01:25]} 12. Na2 {[%emt 0:00:20]} Nb6 {[%emt 0:04:07]} 13. Bxc8 {[%emt 0:03:33]} Nexc8 {[%emt 0:00:18]} 14. b3 {[%emt 0:01:06]} a5 {[%emt 0:10:51]} 15. Nac1 {[%emt 0:13:01]} Nd6 {[%emt 0:10:59]} 16. f3 {[%emt 0:02:10]} Nb7 {[%emt 0:02:02]} 17. Nd3 {[%emt 0:01:48]} Nd7 {[%emt 0:01:40]} 18. Nec1 {[%emt 0:08:44]} h5 {[%emt 0:01:43]} 19. Ke2 {[%emt 0:00:55]} g6 {[%emt 0:06:41]} 20. Rd1 {[%emt 0:03:47]} Nbc5 {[%emt 0:05:32]} 21. Nxc5 {[%emt 0:01:29]} Nxc5 {[%emt 0:00:14]} 22. Nd3 {[%emt 0:00:24]} Nxd3 {[%emt 0:06:50]} 23. Rxd3 {[%emt 0:01:05]} Be7 {[%emt 0:01:13]} 24. Rad1 {[%emt 0:02:17]} Rhd8 {[%emt 0:02:38]} (24... Rad8 $1 $14) 25. Rxd8 {[%emt 0:00:14]} Rxd8 {[%emt 0:00:15]} 26. Rxd8 {[%emt 0:00:08]} Bxd8 {[%emt 0:00:06]} 27. Kd3 {[%emt 0:00:51]} Kd7 {[%emt 0:09:55]} 28. Kc4 {[%emt 0:02:16]} f5 {[%emt 0:02:31]} 29. Bd2 {[%emt 0:01:22]} fxe4 {[%emt 0:00:45]} 30. fxe4 {[%emt 0:00:07]} Bc7 {[%emt 0:03:23]} 31. Kc5 {[%emt 0:01:20]} Bd6+ {[%emt 0:00:27]} 32. Kb6 {[%emt 0:00:55]} Bc7+ {[%emt 0:00:07]} 33. Ka6 {[%emt 0:00:30]} Kd6 {[%emt 0:01:33]} 34. Be3 $18 {[%emt 0:01:17]} Bd8 {[%emt 0:00:36]} 35. Bb6 {[%emt 0:00:48]} Bg5 1-0

[Event "83rd ESP-ch Women-ch 2018"]
[Site "Linares"]
[Date "2018.08.28"]
[Round "9"]
[White "Sosa Suarez, Carla Cristina"]
[Black "Gomez Ligero, Sergio"]
[Result "0-1"]
[ECO "B70"]
[WhiteElo "2006"]
[BlackElo "1826"]
[Annotator "NA RC"]
[PlyCount "91"]
[EventDate "2018.08.09"]
[EventType "tourn"]
[EventCountry "ESP"]
[SourceTitle "playchess.com"]
[Source "ChessBase"]
[SourceQuality "1"]
[TimeControl "40/5400+30:1800+30"]

{[%evp 8,69,21,26,32,11,18,16,0,32767,32767,32767,10,2,43,54,50,32767,18,0,10,32767,4,-3,0,32767,50,39,50,49,68,37,134,37,33,22,31,22,32767,0,46,31,27,24,54,69,32767,32767,119,80,32767,32767,32767,32767,32767,32767,32767,32767,32767,32767,32767,32767,32767,61]} 1. e4 {[%emt 0:00:00]} c5 {[%emt 0:00:00]} 2. Nf3 {[%emt 0:00:00]} d6 {[%emt 0:00:00]} 3. d4 {[%emt 0:00:00]} cxd4 {[%emt 0:00:00]} 4. Nxd4 {[%emt 0:00:00]} Nf6 {[%emt 0:00:00]} 5. Nc3 {[%emt 0:00:00]} g6 {[%emt 0:00:00]} 6. Bc4 {[%emt 0:02:11]} Bg7 {[%emt 0:00:04]} 7. O-O {[%emt 0:00:11]} O-O {[%emt 0:00:33]} 8. Re1 {[%emt 0:02:01]} Nc6 {[%emt 0:03:33]} 9. Nb3 {[%emt 0:00:45]} a6 {[%emt 0:02:59]} 10. a4 {[%emt 0:00:57]} Na5 {[%emt 0:08:52]} 11. Nxa5 {[%emt 0:09:03]} Qxa5 {[%emt 0:00:07] LiveBook: 5 Games} 12. Nd5 {[%emt 0:00:31] B34: Sicilian: Accelerated Dragon with 5 Nc3: sidelines} (12. Bb3 Bg4 13. f3 Be6 14. Nd5 Bxd5 15. exd5 Rfe8 16. Bd2 Qc7 17. Bc3 Nd7 18. Bxg7 Kxg7 19. Qd4+ Kg8 {½-½ (37) Iuldachev,S (2511)-Ankit,R (2350) Mumbai 2010}) 12... Nxd5 {[%emt 0:02:43]} 13. exd5 {[%emt 0:01:06]} Bg4 $146 {[%emt 0:09:40]} ({Predecessor:} 13... Bf6 14. Bh6 Re8 15. c3 Bd7 16. Bf1 Qc7 17. Be3 e6 18. dxe6 Rxe6 19. Qb3 Rae8 20. Red1 Bc6 21. Bc4 R6e7 22. h3 Kg7 23. a5 h6 24. Bd5 Re5 25. Bxc6 Qxc6 26. Ra4 {½-½ (26) Calzetta Ruiz,M (2301)-Heinatz,G (2205) Porto Carras 2011}) 14. Be2 {[%emt 0:05:19]} Bd7 {[%emt 0:10:33]} 15. c3 {[%emt 0:02:43]} b5 {[%emt 0:01:20]} 16. Bg5 {[%emt 0:04:39]} f6 {[%emt 0:05:22]} ({Günstiger ist} 16... b4 $15 17. Bxe7 Rfe8 18. Bxd6 bxc3) 17. axb5 {[%emt 0:02:29]} Qc7 {[%emt 0:00:17]} 18. Be3 {[%emt 0:02:15]} axb5 {[%emt 0:00:16]} 19. Qb3 {[%emt 0:01:34]} Qb7 {[%emt 0:01:22]} (19... f5 $14) 20. Bd4 {[%emt 0:03:17]} ({Better is} 20. c4 $16) 20... Rxa1 {[%emt 0:00:54]} 21. Rxa1 {[%emt 0:00:01]} Ra8 {[%emt 0:00:15]} 22. Re1 {[%emt 0:02:42]} Qa6 {[%emt 0:04:02]} 23. h4 {[%emt 0:06:22]} Bf8 {[%emt 0:04:19]} 24. Qc2 {[%emt 0:05:15]} Qa4 {[%emt 0:02:19]} 25. Qd2 {[%emt 0:03:36]} Qa2 {[%emt 0:07:09]} 26. h5 {[%emt 0:04:06]} Ra4 {[%emt 0:08:37]} 27. Bf3 {[%emt 0:03:33]} Qc4 {[%emt 0:03:52]} 28. Be4 $16 {[%emt 0:05:03]} f5 {[%emt 0:05:58]} 29. Bf3 {[%emt 0:02:05]} Qc8 {[%emt 0:01:16]} 30. hxg6 {[%emt 0:05:17]} hxg6 {[%emt 0:00:46]} 31. Qg5 {[%emt 0:00:29]} Qe8 {[%emt 0:09:04]} 32. g3 {[%emt 0:00:29]} Qf7 {[%emt 0:03:08]} 33. Kg2 {[%emt 0:01:35]} Ra2 {[%emt 0:02:06]} 34. Qh4 {[%emt 0:04:22]} Qh7 {[%emt 0:00:38]} 35. Qxh7+ {[%emt 0:01:25]} Kxh7 {[%emt 0:00:07]} 36. Re2 {[%emt 0:00:31]} Kg8 {[%emt 0:00:25]} 37. Rd2 {[%emt 0:01:03]} Bh6 {[%emt 0:00:40]} 38. Rc2 {[%emt 0:00:53]} Ra4 {[%emt 0:01:30]} 39. Be2 {[%emt 0:01:12]} f4 {[%emt 0:00:45]} 40. Bd3 {[%emt 0:00:30]} Kf7 {[%emt 0:00:35]} 41. gxf4 {[%emt 0:30:14]} Bxf4 {[%emt 0:30:10]} 42. Kf3 {[%emt 0:00:51]} Bg5 {[%emt 0:00:24]} 43. Kg3 {[%emt 0:04:36]} Ra1 {[%emt 0:00:54]} 44. f4 {[%emt 0:00:33]} Bf6 {[%emt 0:00:41]} 45. Bxf6 {[%emt 0:00:38]} Kxf6 {[%emt 0:00:26]} 46. Re2 {[%emt 0:00:54] Ke5} 0-1

[Event "83rd ESP-ch Women-ch 2018"]
[Site "Linares"]
[Date "2018.08.28"]
[Round "9"]
[White "Blazquez Gomez, Miguel"]
[Black "Rascon Jato, Daniel"]
[Result "1-0"]
[ECO "A01"]
[WhiteElo "1998"]
[BlackElo "1849"]
[Annotator "NA RC"]
[PlyCount "91"]
[EventDate "2018.08.09"]
[EventType "tourn"]
[EventCountry "ESP"]
[SourceTitle "playchess.com"]
[Source "ChessBase"]
[SourceQuality "1"]
[TimeControl "40/5400+30:1800+30"]

{[%evp 11,90,41,29,32767,32767,32767,32767,68,124,79,187,158,156,113,222,220,32767,226,219,222,224,192,207,189,232,32767,219,32767,220,173,169,175,32767,32767,145,140,158,156,32767,32767,32767,264,242,32767,32767,32767,32767,32767,32767,32767,32767,32767,32767,32767,275,261,32767,32767,32767,32767,32767,32767,32767,32767,32767,32767,32767,593,32767,32767,32767,32767,32767,6079,32767,32767,29975,12842,29985,29987,29999]} 1. b3 {[%emt 0:00:00]} e5 {[%emt 0:00:00]} 2. Bb2 {[%emt 0:00:00]} f6 {[%emt 0:00:00]} 3. e4 {[%emt 0:00:18]} d6 {[%emt 0:01:21]} 4. Bc4 {[%emt 0:01:11]} Ne7 {[%emt 0:01:51]} 5. Nf3 {[%emt 0:02:23]} Nbc6 {[%emt 0:03:13]} 6. h3 {[%emt 0:10:25]} Na5 {[%emt 0:03:47]} 7. Be2 {[%emt 0:01:28]} c5 {[%emt 0:00:14]} 8. c3 {[%emt 0:03:55]} Nac6 {[%emt 0:03:35] [#]} 9. d4 $1 {[%emt 0:06:19]} Qc7 {[%emt 0:00:07]} (9... f5 $14) 10. O-O {[%emt 0:06:14]} g6 {[%emt 0:02:11]} (10... Ng6 $16 {was necessary.} 11. Na3 Nf4) 11. Na3 {[%emt 0:04:43]} a6 {[%emt 0:00:35]} 12. Nc4 {[%emt 0:00:39]} Ng8 {[%emt 0:07:04]} (12... Bg7 $16 {is a better defense.} 13. Ba3 b6) 13. a4 {[%emt 0:05:50]} Nh6 {[%emt 0:02:15]} 14. a5 {[%emt 0:01:48]} Rb8 {[%emt 0:00:50]} 15. b4 {[%emt 0:18:15]} Nf7 {[%emt 0:08:12]} 16. d5 {[%emt 0:03:25]} Na7 {[%emt 0:04:19]} 17. Nb6 {[%emt 0:01:44]} Be7 {[%emt 0:01:21]} (17... cxb4 {was worth a try.} 18. Qa4+ (18. cxb4 Bd7 $16) 18... Bd7 19. Qxb4 (19. Nxd7 Qxd7 20. Qxb4 Qc7 $18) 19... Bh6 20. Nxd7 Kxd7) 18. Nd2 {[%emt 0:04:20]} O-O {[%emt 0:01:11]} 19. bxc5 {[%emt 0:03:57]} Qxc5 {[%emt 0:06:58]} 20. Ba3 {[%emt 0:00:17]} Qc7 {[%emt 0:01:15]} 21. c4 {[%emt 0:00:28]} Bd7 {[%emt 0:05:53]} 22. Rc1 {[%emt 0:04:21]} Nc8 {[%emt 0:09:03]} 23. Nxd7 {[%emt 0:00:27]} Qxd7 {[%emt 0:00:06]} 24. Nb3 {[%emt 0:01:04]} Na7 {[%emt 0:03:01]} 25. Qd3 {[%emt 0:02:50]} b5 {[%emt 0:17:34]} 26. axb6 {[%emt 0:00:10]} Rxb6 {[%emt 0:00:11]} 27. c5 {[%emt 0:00:20]} dxc5 {[%emt 0:00:46]} 28. Bxc5 {[%emt 0:00:18]} Bxc5 {[%emt 0:01:17]} 29. Nxc5 {[%emt 0:00:02]} Qd6 {[%emt 0:02:11]} 30. Nxa6 {[%emt 0:00:44]} Nb5 {[%emt 0:00:47]} 31. Rc6 {[%emt 0:01:54]} Rxc6 {[%emt 0:00:04]} 32. dxc6 {[%emt 0:00:01]} Nd4 {[%emt 0:02:15]} 33. Rc1 {[%emt 0:00:28]} Nd8 {[%emt 0:05:04]} 34. c7 {[%emt 0:00:38]} N8c6 {[%emt 0:00:05]} 35. Qc4+ {[%emt 0:02:49]} Kg7 {[%emt 0:00:07]} 36. Bg4 {[%emt 0:00:57]} f5 {[%emt 0:00:25]} 37. exf5 {[%emt 0:00:27]} gxf5 {[%emt 0:00:01]} 38. Bxf5 {[%emt 0:02:36]} Qa3 {[%emt 0:02:14]} 39. Kh2 {[%emt 0:02:22]} Qb2 {[%emt 0:05:10]} 40. Rc3 {[%emt 0:04:08]} Qxf2 {[%emt 0:01:15]} 41. Rg3+ {[%emt 0:30:41]} Kf6 {[%emt 0:30:45]} 42. c8=Q {[%emt 0:02:22]} Rxc8 {[%emt 0:00:01]} 43. Bxc8 {[%emt 0:00:01]} Qf4 {[%emt 0:00:52]} 44. Qg8 $18 {[%emt 0:00:52]} Ke7 {[%emt 0:01:50]} 45. Qxh7+ {[%emt 0:00:16]} Kd6 {[%emt 0:00:07]} 46. Qd7# {Ke7} 1-0

[Event "83rd ESP-ch Women-ch 2018"]
[Site "Linares"]
[Date "2018.08.28"]
[Round "9"]
[White "Diaz Rodriguez, Jose Antonio"]
[Black "De la Pena Garcia, Blanca"]
[Result "0-1"]
[ECO "B50"]
[WhiteElo "1991"]
[BlackElo "1811"]
[Annotator "NA RC"]
[PlyCount "52"]
[EventDate "2018.08.09"]
[EventType "tourn"]
[EventCountry "ESP"]
[SourceTitle "playchess.com"]
[Source "ChessBase"]
[SourceQuality "1"]
[TimeControl "40/5400+30:1800+30"]

1. e4 {[%emt 0:00:00]} c5 {[%emt 0:00:26]} 2. Nf3 {[%emt 0:00:07]} d6 {[%emt 0:00:10]} 3. c3 {[%emt 0:00:09]} Nf6 {[%emt 0:00:43]} 4. h3 {[%emt 0:00:01]} g6 {[%emt 0:00:19]} 5. Bc4 {[%emt 0:02:28] B50: Sicilian: 2...d6, Miscellaneous} Bg7 {[%emt 0:00:42]} 6. O-O {[%emt 0:00:16]} O-O {[%emt 0:00:12]} 7. Qe2 {[%emt 0:00:25]} Nc6 {[%emt 0:01:05]} 8. a4 $146 {[%emt 0:02:11]} ({Predecessor:} 8. d3 Nd7 9. Be3 Na5 10. Bb5 a6 11. Ba4 b5 12. Bc2 {½-½ (40) Mammadov,Z (2442)-Mchedlishvili,M (2652) Baku 2012}) 8... a6 {[%emt 0:02:25]} 9. Re1 {[%emt 0:00:59]} Nd7 {[%emt 0:02:01]} 10. Na3 {[%emt 0:03:05]} b6 {[%emt 0:06:26]} 11. Nc2 {[%emt 0:01:35]} Bb7 {[%emt 0:01:39]} 12. d4 {[%emt 0:04:03]} cxd4 {[%emt 0:00:06]} 13. cxd4 {[%emt 0:00:25]} e5 {[%emt 0:10:14]} 14. Bd5 {[%emt 0:19:03]} (14. Bg5 $14 Qc7 15. Rac1) 14... Nxd4 {[%emt 0:00:11]} 15. Nfxd4 {[%emt 0:03:33]} (15. Ncxd4 $15 Bxd5 16. exd5 exd4 17. Bg5) 15... Bxd5 {[%emt 0:01:43]} 16. exd5 {[%emt 0:00:07]} exd4 {[%emt 0:02:47]} 17. Nb4 {[%emt 0:01:30]} Nc5 {[%emt 0:11:15]} 18. Bf4 {[%emt 0:02:47]} Qf6 {[%emt 0:06:29]} 19. Bg3 a5 20. Nc6 {[%emt 0:03:26]} d3 {[%emt 0:04:43]} 21. Qd1 {[%emt 0:07:53]} (21. Qf3 $142 Rfe8 22. Qxf6 Bxf6 23. Rf1) 21... Rfe8 {[%emt 0:03:40]} 22. Rxe8+ {[%emt 0:07:06]} Rxe8 {[%emt 0:00:25]} 23. Rb1 {[%emt 0:00:20]} Bh6 {[%emt 0:04:00]} 24. b4 {[%emt 0:01:16]} axb4 $19 {[%emt 0:00:30]} 25. Nxb4 {[%emt 0:00:43]} d2 {[%emt 0:07:24]} 26. Nc2 Nxa4 0-1

[Event "83rd ESP-ch Women-ch 2018"]
[Site "Linares"]
[Date "2018.08.28"]
[Round "9"]
[White "Antunez Munoz, Ines"]
[Black "Arroyo Rodriguez, Jesus"]
[Result "0-1"]
[ECO "B31"]
[WhiteElo "1956"]
[BlackElo "2099"]
[Annotator "NA RC"]
[PlyCount "112"]
[EventDate "2018.08.09"]
[EventType "tourn"]
[EventCountry "ESP"]
[SourceTitle "playchess.com"]
[Source "ChessBase"]
[SourceQuality "1"]
[TimeControl "40/5400+30:1800+30"]

{[%evp 11,110,22,25,32767,17,4,32767,32,32,25,32767,32767,35,20,40,31,41,50,49,35,76,32767,132,139,154,83,99,105,131,93,176,173,160,32767,32767,32767,32767,32767,32767,32767,32767,32767,240,32767,32767,32767,32767,32767,32767,32767,32767,32767,32767,32767,210,32767,214,188,198,250,219,235,32767,32767,32767,32767,32767,32767,32767,32767,32767,32767,32767,32767,32767,32767,32767,32767,32767,32767,32767,32767,32767,32767,32767,-625,-885,32767,-29970,-29954,-29972,-29963,-29977,-29970,-29975,-29979,-29980,-29981,-29981,-29982,-29984]} 1. e4 {[%emt 0:00:11]} c5 {[%emt 0:02:49]} 2. Nf3 {[%emt 0:00:33]} Nc6 {[%emt 0:00:09]} 3. Bb5 {[%emt 0:01:15]} g6 {[%emt 0:00:30]} 4. O-O {[%emt 0:00:51]} Bg7 {[%emt 0:00:14]} 5. Bxc6 {[%emt 0:00:25]} dxc6 {[%emt 0:03:09]} 6. d3 {[%emt 0:02:56] LiveBook: 350 Partien} Nf6 {[%emt 0:00:19]} 7. Nc3 {[%emt 0:01:16]} O-O {[%emt 0:00:08] B31: Sicilian: 2...Nc6 3 Bb5 g6} 8. Bg5 {[%emt 0:01:40]} (8. a4 a5 9. h3 b6 10. Be3 Ne8 11. Qd2 e5 12. Bh6 f6 13. Nh2 Ra7 14. Kh1 g5 15. Bxg7 Nxg7 16. Ne2 h5 17. h4 Ne6 18. g3 f5 19. exf5 Rxf5 20. hxg5 Nxg5 {½-½ (29) Negi,P (2670)-Frhat,A (2402) Khanty-Mansiysk 2017}) 8... h6 {[%emt 0:00:43]} 9. Be3 {[%emt 0:03:10]} b6 {[%emt 0:03:11]} 10. h3 {[%emt 0:01:09]} Qc7 $146 {[%emt 0:05:24]} ({Predecessor:} 10... Nd7 11. Qd2 Kh7 12. e5 Nxe5 13. Nxe5 Bxe5 14. Bxh6 Rh8 15. Bf4 {½-½ (89) Nieto,G (1907)-Munoz,J (2181) Bogota 2012}) 11. Qd2 {[%emt 0:01:35]} g5 {[%emt 0:00:43]} 12. Ne2 {[%emt 0:11:34]} Rd8 {[%emt 0:15:23]} 13. Ng3 {[%emt 0:02:29]} c4 {[%emt 0:01:52]} 14. d4 {[%emt 0:13:58]} c5 {[%emt 0:12:03]} 15. c3 {[%emt 0:18:28]} Qb7 {[%emt 0:01:24]} 16. Qc2 {[%emt 0:02:23]} g4 {[%emt 0:00:59]} 17. hxg4 {[%emt 0:05:02]} Nxg4 {[%emt 0:02:08]} 18. Rad1 {[%emt 0:02:47]} Nxe3 {[%emt 0:01:13]} 19. fxe3 {[%emt 0:00:06]} Bg4 {[%emt 0:01:05]} 20. Qf2 {[%emt 0:01:57]} e6 {[%emt 0:00:39]} (20... Rf8 $16) 21. Rd2 {[%emt 0:04:09]} f5 {[%emt 0:12:29]} 22. Nh2 {[%emt 0:04:12]} Rf8 {[%emt 0:00:38]} 23. Qf4 {[%emt 0:03:29]} h5 {[%emt 0:01:39]} 24. Nxg4 {[%emt 0:05:42]} fxg4 {[%emt 0:07:48]} 25. Qg5 {[%emt 0:00:58]} cxd4 {[%emt 0:08:34]} 26. exd4 {[%emt 0:02:19]} Rxf1+ {[%emt 0:02:13]} 27. Kxf1 {[%emt 0:00:14]} Rf8+ {[%emt 0:02:09]} 28. Rf2 {[%emt 0:04:12]} Rxf2+ {[%emt 0:00:31]} 29. Kxf2 {[%emt 0:00:03]} Qf7+ {[%emt 0:00:44]} 30. Ke2 {[%emt 0:02:12]} h4 {[%emt 0:00:42]} 31. Qxh4 {[%emt 0:02:35]} Qg6 {[%emt 0:00:34]} 32. Qh5 {[%emt 0:00:45]} Kf7 {[%emt 0:00:26]} 33. Qb5 {[%emt 0:00:57]} Bh6 {[%emt 0:00:43]} 34. Qd7+ {[%emt 0:00:46]} Kg8 {[%emt 0:00:56]} 35. Qc8+ {[%emt 0:00:21]} ({Not} 35. Qxa7 Qg5 $16) 35... Kf7 {[%emt 0:00:27]} 36. Qc7+ {[%emt 0:00:29]} ({Weaker is} 36. Qxc4 Qg5 $16) 36... Kg8 {[%emt 0:00:12]} 37. Qxc4 {[%emt 0:00:42]} Bf4 {[%emt 0:00:35]} 38. Qc8+ {[%emt 0:00:25]} Kg7 {[%emt 0:01:14]} 39. Qd7+ {[%emt 0:00:27]} Kh6 {[%emt 0:00:09]} 40. Nf1 {[%emt 0:00:45]} Qxe4+ {[%emt 0:00:18]} 41. Kd1 {[%emt 0:30:29]} Qb1+ {[%emt 0:32:23]} 42. Ke2 {[%emt 0:00:10]} Qxb2+ {[%emt 0:01:54]} 43. Kd1 {[%emt 0:00:12]} Qc1+ {[%emt 0:00:39]} 44. Ke2 {[%emt 0:00:08]} Qc2+ {[%emt 0:00:13]} 45. Ke1 {[%emt 0:00:35]} Qxc3+ {[%emt 0:00:17]} 46. Kd1 {[%emt 0:00:29]} Qa1+ {[%emt 0:00:32]} 47. Ke2 {[%emt 0:00:18]} Qxa2+ {[%emt 0:00:11]} 48. Ke1 {[%emt 0:00:30]} g3 {[%emt 0:00:31]} 49. Qb5 {[%emt 0:01:30]} Qa5+ {[%emt 0:01:28]} 50. Qxa5 {[%emt 0:00:07]} bxa5 {[%emt 0:00:02]} 51. Ke2 {[%emt 0:00:47]} Kg5 {[%emt 0:00:44]} 52. Kd3 {[%emt 0:00:11]} Kf5 {[%emt 0:00:18]} 53. Kc4 {[%emt 0:00:44]} Ke4 {[%emt 0:00:14]} 54. Kc3 {[%emt 0:00:11]} a4 {[%emt 0:00:11]} 55. Kb4 {[%emt 0:00:25]} Kxd4 {[%emt 0:00:10]} 56. Kxa4 {[%emt 0:00:51]} Kd3 {[%emt 0:00:06]} 0-1